[Event "33rd ECCC Open 2017"]
[Site "Antalya"]
[Date "2017.10.13"]
[Round "6"]
[White "Marsili, Riccardo"]
[Black "Jakobsen, Peter"]
[Result "0-1"]
[ECO "A37"]
[WhiteElo "2219"]
[BlackElo "2182"]
[Annotator "NA"]
[PlyCount "84"]
[EventType "team-tourn"]
[EventCountry "TUR"]
[SourceTitle "playchess.com"]
[Source "ChessBase"]
[SourceQuality "1"]
[WhiteTeam "Augusta Perusia"]
[BlackTeam "Nordkalotten"]
[TimeControl "40/5400+30:1800+30"]

1. c4 {[%emt 0:00:30]} c5 {[%emt 0:01:00]} 2. g3 {[%emt 0:00:30]} Nc6 {[%emt 0:00:30]} 3. Bg2 {[%emt 0:00:00]} g6 {[%emt 0:00:00]} 4. Nc3 {[%emt 0:00:00]} Bg7 {[%emt 0:00:00]} 5. Nf3 {[%emt 0:00:00]} e5 {[%emt 0:00:00]} 6. O-O {[%emt 0:00:00]} Nge7 {[%emt 0:00:00]} 7. a3 {[%emt 0:01:30]} O-O {[%emt 0:00:30]} 8. Rb1 {[%emt 0:00:30]} a5 {[%emt 0:01:30]} 9. Ne1 {[%emt 0:00:30]} d6 {[%emt 0:00:00]} 10. Nc2 {[%emt 0:00:30]} Be6 {[%emt 0:00:00]} 11. d3 {[%emt 0:00:30]} d5 {[%emt 0:05:30]} 12. cxd5 {[%emt 0:00:30]} Nxd5 {[%emt 0:00:30]} 13. Ne3 {[%emt 0:00:00]} Nde7 {[%emt 0:00:30]} 14. Nc4 {[%emt 0:00:00]} Rb8 {[%emt 0:06:30] A37: Symmetrical English vs ...g6: 4 Bg2 Bg7 5 Nf3} 15. Qa4 {[%emt 0:02:30]} (15. Bg5 f6 16. Be3 Nd4 17. b4 axb4 18. axb4 b5 19. Nd2 cxb4 20. Rxb4 Qa5 21. Qb1 Nec6 22. Bxc6 Nxc6 {1-0 (68) Anand,V (2785)-Tregubov,P (2607) Bastia 2014}) 15... Bd7 {[%emt 0:05:30]} 16. Qd1 $146 {[%emt 0:11:30]} ({Predecessor:} 16. Qb5 b6 17. Qa6 Bc8 18. Qb5 Nd4 19. Qa4 b5 20. Qxa5 bxc4 21. Qxc5 cxd3 22. exd3 Bb7 23. Ne4 f5 24. Bg5 Re8 25. Nd6 Bxg2 26. Nxe8 Bxf1 27. Nf6+ Bxf6 28. Bxf6 Qd5 {0-1 (28) Ask,J (2103)-Bjarnehag,P (2257) Stockholm 1999}) 16... b5 {[%emt 0:07:30]} 17. Ne3 {[%emt 0:01:30]} Nd4 {[%emt 0:05:30]} 18. Bd2 {[%emt 0:05:30]} a4 {[%emt 0:02:30]} 19. Ned5 {[%emt 0:08:30]} Nxd5 {[%emt 0:09:30]} 20. Nxd5 {[%emt 0:00:30]} Bg4 {[%emt 0:05:30]} 21. Re1 {[%emt 0:01:30]} Be6 {[%emt 0:00:30]} 22. e4 {[%emt 0:02:30]} f5 {[%emt 0:00:30]} 23. Bc3 {[%emt 0:05:30]} Nb3 {[%emt 0:03:30]} 24. f4 {[%emt 0:04:30]} fxe4 {[%emt 0:03:30]} 25. dxe4 $15 {[%emt 0:01:30]} Bxd5 {[%emt 0:00:30]} 26. exd5 {[%emt 0:03:30]} exf4 {[%emt 0:00:00]} 27. gxf4 {[%emt 0:14:30]} Rxf4 {[%emt 0:00:00]} 28. Bxg7 {[%emt 0:03:30]} Kxg7 {[%emt 0:00:30]} 29. Qe2 {[%emt 0:08:30]} Qf6 {[%emt 0:05:30]} 30. Rbd1 {[%emt 0:04:30]} Nd4 {[%emt 0:01:30]} 31. Qe7+ {[%emt 0:02:37]} Qxe7 {[%emt 0:00:30]} 32. Rxe7+ {[%emt 0:00:06]} Rf7 {[%emt 0:01:30]} 33. Rde1 {[%emt 0:00:14]} Rd8 {[%emt 0:01:30]} 34. Re8 {[%emt 0:02:40]} Rd6 {[%emt 0:08:30]} 35. Rc8 {[%emt 0:01:34]} c4 {[%emt 0:01:30]} 36. Rd1 {[%emt 0:01:46]} Ne2+ {[%emt 0:03:30]} 37. Kh1 {[%emt 0:00:07]} Nf4 {[%emt 0:04:27]} 38. Rb8 {[%emt 0:01:26]} Nd3 {[%emt 0:00:20]} 39. Rd2 {[%emt 0:00:20]} Re7 {[%emt 0:04:20]} 40. Bf3 {[%emt 0:00:00]} Rf6 {[%emt 0:03:53]} 41. Bd1 {[%emt 0:05:40]} Rf2 {[%emt 0:02:30]} 42. Rxf2 {[%emt 0:03:30]} Nxf2+ {[%emt 0:00:30]} 0-1

[Event "33rd ECCC Open 2017"]
[Site "Antalya"]
[Date "2017.10.13"]
[Round "6"]
[White "Yazici, Ugur Doga"]
[Black "Mihajlov, Sebastian"]
[Result "0-1"]
[ECO "C49"]
[WhiteElo "2213"]
[BlackElo "2393"]
[Annotator "NA"]
[PlyCount "125"]
[EventType "team-tourn"]
[EventCountry "TUR"]
[SourceTitle "playchess.com"]
[Source "ChessBase"]
[SourceQuality "1"]
[WhiteTeam "Genc"]
[BlackTeam "Oslo"]
[TimeControl "40/5400+30:1800+30"]

1. e4 {[%emt 0:00:30]} e5 {[%emt 0:02:00]} 2. Nf3 {[%emt 0:00:30]} Nc6 {[%emt 0:00:30]} 3. Nc3 {[%emt 0:00:00]} Nf6 {[%emt 0:00:30]} 4. Bb5 {[%emt 0:00:00]} Bb4 {[%emt 0:00:30]} 5. O-O {[%emt 0:00:00]} O-O {[%emt 0:00:30]} 6. d3 {[%emt 0:00:00]} d6 {[%emt 0:00:30]} 7. Ne2 {[%emt 0:00:00]} Ne7 {[%emt 0:02:30]} 8. c3 {[%emt 0:00:00]} Ba5 {[%emt 0:00:30]} 9. Ng3 {[%emt 0:00:30] C49: Four Knights: 4 Bb5 Bb4} c6 {[%emt 0:00:30]} 10. Ba4 {[%emt 0:00:00]} h6 {[%emt 0:02:30]} (10... Ng6 11. d4 Re8 12. Bc2 Bb6 13. Be3 d5 14. dxe5 Nxe4 15. Nxe4 dxe4 16. Bxe4 Nxe5 17. Nxe5 Rxe5 18. Bxb6 Qxb6 19. Re1 Bf5 20. Bxf5 Rxf5 {½-½ (43) Wei,Y (2738)-Naiditsch,A (2712) Danzhou 2017}) 11. Re1 {[%emt 0:00:00]} Ng6 {[%emt 0:04:30]} 12. h3 {[%emt 0:00:30]} Bc7 {[%emt 0:06:30]} 13. d4 {[%emt 0:01:30]} Be6 {[%emt 0:04:30]} 14. Bc2 {[%emt 0:00:30]} Qd7 {[%emt 0:03:30]} 15. Be3 {[%emt 0:01:30]} Nf4 $146 {[%emt 0:15:30]} ({Predecessor:} 15... Rfe8 16. Qd2 Rad8 17. Rad1 Qe7 18. Nf5 Bxf5 19. exf5 {½-½ (73) Kalofonos,P (2089)-Zervos,L (2034) Porto Rio 2015}) 16. Bxf4 {[%emt 0:05:30]} exf4 {[%emt 0:02:30]} 17. Ne2 {[%emt 0:00:30]} g5 {[%emt 0:11:30]} 18. e5 {[%emt 0:03:30]} Nh5 {[%emt 0:00:30]} 19. Qd3 {[%emt 0:02:30]} f5 {[%emt 0:00:30]} 20. exd6 {[%emt 0:00:30]} Bxd6 $16 {[%emt 0:00:00]} 21. Rad1 {[%emt 0:04:30]} Bd5 {[%emt 0:04:00]} 22. Bb3 {[%emt 0:01:30]} Bxb3 {[%emt 0:01:30]} 23. axb3 {[%emt 0:00:30]} Rae8 {[%emt 0:01:30]} 24. b4 {[%emt 0:02:30]} Rf6 {[%emt 0:12:30]} 25. d5 {[%emt 0:05:30]} cxd5 {[%emt 0:00:30]} 26. Qxd5+ {[%emt 0:00:30]} Qf7 {[%emt 0:00:30]} 27. Qxf7+ {[%emt 0:00:30]} Kxf7 {[%emt 0:00:30]} 28. Ned4 {[%emt 0:00:30]} Ng7 {[%emt 0:00:30]} 29. Rxe8 {[%emt 0:00:30]} Nxe8 {[%emt 0:00:30]} 30. Ra1 {[%emt 0:00:30]} Bb8 {[%emt 0:00:30]} 31. Ra5 {[%emt 0:00:30]} Nd6 {[%emt 0:00:30]} 32. h4 {[%emt 0:00:30]} Ne4 {[%emt 0:04:52]} 33. Rb5 {[%emt 0:04:30]} b6 {[%emt 0:16:21]} 34. hxg5 {[%emt 0:00:30]} hxg5 {[%emt 0:00:01]} 35. Rd5 {[%emt 0:01:30]} Kg6 {[%emt 0:00:34]} 36. Rd8 {[%emt 0:01:30]} Bd6 {[%emt 0:00:06]} 37. Nc6 {[%emt 0:04:30]} a6 {[%emt 0:01:58]} 38. Nfd4 {[%emt 0:02:30]} g4 {[%emt 0:00:21]} 39. Ra8 {[%emt 0:06:30]} g3 {[%emt 0:00:37]} 40. f3 {[%emt 0:00:00]} Nd2 {[%emt 0:00:40]} 41. Rg8+ {[%emt 0:09:00]} Kh5 {[%emt 0:00:30]} 42. Re8 {[%emt 0:04:30]} b5 {[%emt 0:05:30]} 43. Na5 {[%emt 0:06:30]} Bc7 {[%emt 0:05:30]} 44. Re6 {[%emt 0:00:30]} Kg6 {[%emt 0:02:30]} 45. Rxf6+ {[%emt 0:01:30]} Kxf6 {[%emt 0:00:30]} 46. Ndb3 {[%emt 0:00:30]} Bb6+ {[%emt 0:00:00]} 47. Nc5 {[%emt 0:03:30]} Ke5 {[%emt 0:01:00]} 48. Kh1 {[%emt 0:01:30]} Bxc5 {[%emt 0:01:51]} 49. bxc5 {[%emt 0:00:30]} Kd5 {[%emt 0:00:00]} 50. c6 {[%emt 0:00:30]} Kd6 {[%emt 0:00:00]} 51. b3 {[%emt 0:00:30]} Nf1 {[%emt 0:06:10]} 52. Kg1 {[%emt 0:00:30]} Ne3 {[%emt 0:00:34]} 53. c4 {[%emt 0:00:30]} Kc7 {[%emt 0:01:26]} 54. Kh1 {[%emt 0:02:30]} Nc2 {[%emt 0:04:01]} 55. Kg1 {[%emt 0:02:30]} Nd4 {[%emt 0:00:04]} 56. cxb5 {[%emt 0:00:00]} axb5 {[%emt 0:00:10]} 57. Kf1 {[%emt 0:01:00]} Nxc6 {[%emt 0:00:04]} 58. Nxc6 {[%emt 0:01:30]} Kxc6 {[%emt 0:00:05]} 59. Ke2 {[%emt 0:00:00]} Kc5 {[%emt 0:01:53]} 60. Kd3 {[%emt 0:00:00]} Kb4 {[%emt 0:00:04]} 61. Kc2 {[%emt 0:01:30]} Ka3 {[%emt 0:00:27]} 62. Kc3 {[%emt 0:02:30]} Ka2 {[%emt 0:00:08]} 63. Kd4 {[%emt 0:00:30]} 0-1

[Event "33rd ECCC Open 2017"]
[Site "Antalya"]
[Date "2017.10.13"]
[Round "6"]
[White "Vea, Odin Blikra"]
[Black "Taskaya, Muhammed"]
[Result "0-1"]
[ECO "C02"]
[WhiteElo "2211"]
[BlackElo "1980"]
[Annotator "NA"]
[PlyCount "109"]
[EventType "team-tourn"]
[EventCountry "TUR"]
[SourceTitle "playchess.com"]
[Source "ChessBase"]
[SourceQuality "1"]
[WhiteTeam "Valerenga"]
[BlackTeam "Karaman"]
[TimeControl "40/5400+30:1800+30"]

1. e4 {[%emt 0:00:30]} e6 {[%emt 0:01:00]} 2. d4 {[%emt 0:00:30]} d5 {[%emt 0:00:30]} 3. e5 {[%emt 0:00:30]} c5 {[%emt 0:00:30]} 4. c3 {[%emt 0:00:30]} Nc6 {[%emt 0:00:30]} 5. Nf3 {[%emt 0:00:00]} Bd7 {[%emt 0:00:00] LiveBook: 3058 Games} 6. a3 {[%emt 0:00:00]} c4 {[%emt 0:00:00]} 7. g3 {[%emt 0:00:00]} Na5 {[%emt 0:00:00]} 8. Nbd2 {[%emt 0:01:00]} Ne7 {[%emt 0:00:00]} 9. Bh3 {[%emt 0:00:30] C02: French: Advance Variation} (9. h4 Nc8 10. Bh3 Nb6 11. O-O Ba4 12. Qe2 Be7 13. Ne1 Qd7 14. f4 g6 15. Ng2 O-O-O 16. Ne3 Kb8 {½-½ (64) Potapov,P (2493)-Korobov,A (2692) Doha 2016}) 9... Nc8 {[%emt 0:00:00]} 10. O-O {[%emt 0:00:30]} Nb6 {[%emt 0:00:00]} 11. Ne1 {[%emt 0:01:30]} Ba4 {[%emt 0:10:30]} 12. Qe2 {[%emt 0:00:30]} Be7 {[%emt 0:05:30]} 13. f4 {[%emt 0:00:30]} g6 {[%emt 0:00:00]} 14. g4 $146 {[%emt 0:00:00]} ({Predecessor:} 14. Ng2 Qc7 15. g4 h5 {1-0 (29) Schoeneich,M-Boinowitz,T Germany 1987}) 14... h5 {[%emt 0:06:00]} 15. f5 {[%emt 0:01:00]} hxg4 {[%emt 0:01:30]} 16. fxe6 {[%emt 0:00:00]} gxh3 {[%emt 0:03:30]} 17. exf7+ {[%emt 0:05:00]} Kf8 {[%emt 0:08:30]} 18. e6 {[%emt 0:45:30]} Nb3 {[%emt 0:00:00]} 19. Nxb3 {[%emt 0:00:30]} cxb3 {[%emt 0:00:00]} 20. Qe5 {[%emt 0:00:30]} Rh7 {[%emt 0:00:00]} 21. Nf3 {[%emt 0:11:30]} Qd6 $16 {[%emt 0:06:00]} 22. Ng5 {[%emt 0:04:30]} Rh5 {[%emt 0:17:30]} 23. Nf3 {[%emt 0:09:10]} Qxe5 {[%emt 0:00:30]} 24. Nxe5 {[%emt 0:00:30]} Kg7 {[%emt 0:00:30]} 25. Bf4 {[%emt 0:00:30]} Nc4 {[%emt 0:00:30]} 26. Nxc4 {[%emt 0:00:30]} dxc4 {[%emt 0:00:30]} 27. Be5+ {[%emt 0:05:05]} Rxe5 {[%emt 0:00:30]} 28. dxe5 {[%emt 0:00:30]} Bc5+ {[%emt 0:00:30]} 29. Rf2 {[%emt 0:11:40]} Rd8 {[%emt 0:07:30]} 30. Kf1 {[%emt 0:00:30]} Bc6 {[%emt 0:00:30]} 31. Rf4 {[%emt 0:00:30]} Bd5 {[%emt 0:00:30]} 32. Rd1 {[%emt 0:00:30]} Bg2+ {[%emt 0:01:30]} 33. Ke2 {[%emt 0:00:30]} Rxd1 {[%emt 0:00:30]} 34. Kxd1 {[%emt 0:00:30]} Bd5 {[%emt 0:00:30]} 35. Rf6 {[%emt 0:00:30]} Be7 {[%emt 0:00:30]} 36. f8=Q+ {[%emt 0:00:30]} Bxf8 {[%emt 0:00:30]} 37. Rf7+ {[%emt 0:00:30]} Kg8 {[%emt 0:00:00]} 38. Rf6 {[%emt 0:00:00]} Be7 {[%emt 0:00:00]} 39. Rxg6+ {[%emt 0:00:00]} Kh7 {[%emt 0:00:00]} 40. Rg1 {[%emt 0:00:00]} Bxe6 {[%emt 0:06:00]} 41. Ke2 {[%emt 0:14:49]} Bc5 {[%emt 0:00:30]} 42. Rf1 {[%emt 0:00:30]} Be7 {[%emt 0:00:30]} 43. Ke3 {[%emt 0:00:30]} Kg6 {[%emt 0:00:30]} 44. Ke4 {[%emt 0:02:04]} b5 {[%emt 0:00:30]} 45. Kd4 {[%emt 0:11:51]} Kg5 {[%emt 0:03:30]} 46. Rg1+ {[%emt 0:00:30]} Bg4 {[%emt 0:00:30]} 47. Kd5 {[%emt 0:00:30]} Kf4 {[%emt 0:00:30]} 48. Rf1+ {[%emt 0:01:16]} Ke3 {[%emt 0:00:30]} 49. e6 {[%emt 0:00:30]} Bf3+ {[%emt 0:00:30]} 50. Ke5 {[%emt 0:00:21]} Ke2 {[%emt 0:01:30]} 51. Rg1 {[%emt 0:00:56]} Bg2 {[%emt 0:02:30]} 52. a4 {[%emt 0:01:35]} bxa4 {[%emt 0:00:30]} 53. Kd4 {[%emt 0:01:31]} Kd2 {[%emt 0:02:30]} 54. Kxc4 {[%emt 0:01:03]} Kc2 {[%emt 0:00:30]} 55. Kb5 {[%emt 0:01:49]} 0-1

[Event "33rd ECCC Open 2017"]
[Site "Antalya"]
[Date "2017.10.13"]
[Round "6"]
[White "Salihu, Sami"]
[Black "Ronka, Erik"]
[Result "1-0"]
[ECO "B06"]
[WhiteElo "2187"]
[BlackElo "2287"]
[Annotator "NA"]
[PlyCount "71"]
[EventType "team-tourn"]
[EventCountry "TUR"]
[SourceTitle "playchess.com"]
[Source "ChessBase"]
[SourceQuality "1"]
[WhiteTeam "Dardania"]
[BlackTeam "Etela-Vantaan"]
[TimeControl "40/5400+30:1800+30"]

1. d4 {[%emt 0:00:30]} g6 {[%emt 0:02:00]} 2. e4 {[%emt 0:00:30]} Bg7 {[%emt 0:00:30]} 3. Nf3 {[%emt 0:00:30]} d6 {[%emt 0:02:30]} 4. Bc4 {[%emt 0:01:30]} Nf6 {[%emt 0:09:30]} 5. e5 {[%emt 0:00:30]} dxe5 {[%emt 0:00:30]} 6. Nxe5 {[%emt 0:00:30]} O-O {[%emt 0:00:30]} 7. O-O {[%emt 0:00:00]} Nfd7 {[%emt 0:10:30] B06: Moderne Verteidigung} (7... Nbd7 8. c3 c5 9. h3 cxd4 10. cxd4 Nb6 11. Bb3 Nbd5 12. Nc3 Be6 13. Bg5 Nc7 14. Re1 Bd5 15. Nxd5 Nfxd5 {½-½ (35) Fridman,D (2597)-Mista,A (2588) Germany 2016}) 8. f4 {[%emt 0:01:00]} c5 {[%emt 0:06:30]} 9. dxc5 $146 {[%emt 0:00:30]} ({Vorgänger:} 9. c3 cxd4 10. cxd4 Nb6 11. Bb3 Nc6 12. Be3 Na5 13. Nc3 Nxb3 14. Qxb3 Be6 15. Qb4 {½-½ (55) Selbes,T (2302)-Kadric,D (2473) Zagreb 2013}) 9... Qc7 {[%emt 0:01:30]} 10. Nxd7 {[%emt 0:04:30]} Nxd7 {[%emt 0:01:30]} 11. Qe2 {[%emt 0:00:00]} Qxc5+ {[%emt 0:00:30]} 12. Be3 {[%emt 0:02:00]} Qc7 {[%emt 0:00:30]} 13. c3 {[%emt 0:00:30]} Nf6 {[%emt 0:00:30]} 14. Na3 {[%emt 0:00:30]} a6 {[%emt 0:07:30]} 15. Bd4 {[%emt 0:00:30]} b5 {[%emt 0:04:30]} 16. Bb3 {[%emt 0:00:30]} e6 {[%emt 0:03:30]} 17. Nc2 {[%emt 0:00:00]} Bb7 {[%emt 0:05:30]} 18. Be5 {[%emt 0:01:00]} Qb6+ {[%emt 0:03:30]} 19. Nd4 {[%emt 0:00:30]} b4 {[%emt 0:01:30]} 20. cxb4 {[%emt 0:02:30]} Qxb4 {[%emt 0:04:30]} 21. Rac1 {[%emt 0:02:30]} Rac8 {[%emt 0:14:13]} 22. Rxc8 {[%emt 0:01:30]} Rxc8 {[%emt 0:04:02]} 23. Nxe6 {[%emt 0:00:30]} fxe6 {[%emt 0:03:52]} 24. Bxe6+ {[%emt 0:01:30]} Kf8 {[%emt 0:00:07]} 25. Bxc8 {[%emt 0:00:00]} Bxc8 {[%emt 0:00:44]} 26. Rc1 {[%emt 0:01:00]} Bf5 {[%emt 0:02:18]} 27. Qxa6 {[%emt 0:00:30]} Ne8 {[%emt 0:01:19]} 28. Qc4 {[%emt 0:03:30]} Qd2 {[%emt 0:00:49]} 29. Qc3 {[%emt 0:00:00]} Qd7 {[%emt 0:00:46]} 30. Bxg7+ {[%emt 0:03:00]} Nxg7 {[%emt 0:00:01]} 31. b4 {[%emt 0:01:30]} Nh5 {[%emt 0:01:29]} 32. Qh8+ {[%emt 0:02:30]} Kf7 {[%emt 0:00:09]} 33. Qe5 $18 {[%emt 0:02:30]} ({Don't do} 33. Qxh7+ $6 Ng7 $18) 33... Qa7+ {[%emt 0:07:06]} 34. Kh1 {[%emt 0:00:30]} Qa8 {[%emt 0:01:29]} 35. Rc7+ {[%emt 0:00:30]} Kg8 {[%emt 0:00:00]} 36. Qe7 {[%emt 0:00:30]} 1-0

[Event "33rd ECCC Open 2017"]
[Site "Antalya"]
[Date "2017.10.13"]
[Round "6"]
[White "Jackson, Carl"]
[Black "Bjornsson, Sigurbjorn"]
[Result "0-1"]
[ECO "B40"]
[WhiteElo "2149"]
[BlackElo "2277"]
[Annotator "NA"]
[PlyCount "74"]
[EventType "team-tourn"]
[EventCountry "TUR"]
[SourceTitle "playchess.com"]
[Source "ChessBase"]
[SourceQuality "1"]
[WhiteTeam "Gonzaga"]
[BlackTeam "Fjolnir"]
[TimeControl "40/5400+30:1800+30"]

1. e4 {[%emt 0:00:30]} c5 {[%emt 0:01:00]} 2. Nc3 {[%emt 0:00:30]} a6 {[%emt 0:00:30]} 3. g3 {[%emt 0:00:00]} b5 {[%emt 0:00:00]} 4. Bg2 {[%emt 0:00:00]} Bb7 {[%emt 0:00:00] LiveBook: 682 Games} 5. d3 {[%emt 0:00:00]} e6 {[%emt 0:00:30]} 6. Nf3 {[%emt 0:01:00]} d6 {[%emt 0:08:30]} 7. O-O {[%emt 0:00:30]} Nf6 {[%emt 0:01:30]} 8. Re1 {[%emt 0:00:30]} Be7 {[%emt 0:12:30] B40: Sicilian: 2...e6, Unusual lines} (8... Nbd7 9. Bf4 Be7 10. a4 b4 11. Nb1 O-O 12. Nbd2 d5 13. exd5 Nxd5 14. Ne5 Ra7 15. Nxd7 Qxd7 16. Be3 Nxe3 17. fxe3 Bxg2 18. Kxg2 {0-1 (34) Safarli,E (2592)-Caruana,F (2652) Reggio Emilia 2010}) 9. e5 {[%emt 0:02:30]} dxe5 {[%emt 0:02:30]} 10. Nxe5 {[%emt 0:00:30]} Bxg2 {[%emt 0:00:30]} 11. Kxg2 {[%emt 0:00:00]} O-O {[%emt 0:04:30]} 12. Qf3 {[%emt 0:01:00]} Ra7 {[%emt 0:04:30]} 13. Nc6 $146 {[%emt 0:01:30]} ({Predecessor:} 13. a4 b4 14. Ne4 Nfd7 15. Nc4 Nc6 16. Bf4 {1-0 (40) Daurimbetov,A (2291)-Tologontegin,S (2379) Almaty 2015}) 13... Nxc6 {[%emt 0:00:30]} 14. Qxc6 {[%emt 0:00:00]} Qc8 {[%emt 0:06:30]} 15. Qxc8 {[%emt 0:02:00]} Rxc8 {[%emt 0:00:30]} 16. a4 {[%emt 0:00:30]} b4 {[%emt 0:01:30]} 17. Ne4 {[%emt 0:02:30]} c4 {[%emt 0:03:30]} 18. Bg5 {[%emt 0:11:30]} cxd3 {[%emt 0:07:30]} 19. cxd3 {[%emt 0:03:30]} Nxe4 {[%emt 0:05:30]} 20. Bxe7 {[%emt 0:00:30]} Nxf2 {[%emt 0:08:30]} 21. Rac1 $17 {[%emt 0:03:30]} Rac7 {[%emt 0:00:30]} 22. Rxc7 {[%emt 0:00:30]} Rxc7 {[%emt 0:00:30]} 23. Kxf2 {[%emt 0:00:00]} Rxe7 {[%emt 0:00:00]} 24. Rc1 {[%emt 0:00:00]} Kf8 {[%emt 0:13:49]} 25. Rc6 {[%emt 0:03:30]} a5 {[%emt 0:02:34]} 26. Ke3 {[%emt 0:06:30]} Ke8 {[%emt 0:01:38]} 27. Kd4 {[%emt 0:09:30]} Rd7+ {[%emt 0:01:35]} 28. Kc4 {[%emt 0:01:30]} Rd5 {[%emt 0:00:56]} 29. Rc5 {[%emt 0:00:30]} Rxc5+ {[%emt 0:01:32]} 30. Kxc5 {[%emt 0:01:30]} g5 {[%emt 0:00:34]} 31. Kd6 {[%emt 0:06:30]} f5 {[%emt 0:01:42]} 32. Ke5 {[%emt 0:00:00]} b3 {[%emt 0:06:40]} 33. d4 {[%emt 0:00:00]} Ke7 {[%emt 0:00:55]} 34. d5 {[%emt 0:00:30]} exd5 {[%emt 0:00:29]} 35. Kxf5 {[%emt 0:00:30]} Kd6 {[%emt 0:00:00]} 36. Kxg5 {[%emt 0:00:30]} Ke5 {[%emt 0:00:16]} 37. Kg4 {[%emt 0:01:30]} Ke4 {[%emt 0:00:06]} 0-1

[Event "33rd ECCC Open 2017"]
[Site "Antalya"]
[Date "2017.10.13"]
[Round "6"]
[White "Halldorsson, Jon Arni"]
[Black "Mercier, Pierre-Adelin"]
[Result "1-0"]
[ECO "E92"]
[WhiteElo "2147"]
[BlackElo "1925"]
[Annotator "NA"]
[PlyCount "83"]
[EventType "team-tourn"]
[EventCountry "TUR"]
[SourceTitle "playchess.com"]
[Source "ChessBase"]
[SourceQuality "1"]
[WhiteTeam "Fjolnir"]
[BlackTeam "Gonzaga"]
[TimeControl "40/5400+30:1800+30"]

1. d4 {[%emt 0:00:30]} Nf6 {[%emt 0:01:00]} 2. Nf3 {[%emt 0:00:30]} g6 {[%emt 0:00:00]} 3. c4 {[%emt 0:00:30]} Bg7 {[%emt 0:00:00]} 4. Nc3 {[%emt 0:01:30]} O-O {[%emt 0:00:30]} 5. e4 {[%emt 0:00:30]} d6 {[%emt 0:00:00]} 6. Be2 {[%emt 0:01:30]} e5 {[%emt 0:00:00]} 7. dxe5 {[%emt 0:01:30]} dxe5 {[%emt 0:00:30]} 8. Qxd8 {[%emt 0:00:00]} Rxd8 {[%emt 0:00:30]} 9. Bg5 {[%emt 0:00:00]} c6 {[%emt 0:00:00]} 10. Nxe5 {[%emt 0:04:30]} Re8 {[%emt 0:00:00]} 11. Nf3 {[%emt 0:06:30] E92: King's Indian: Classical: 6 Be2 e5: 7 dxe5, 7 Be3 and Petrosian System without 7...Nbd7} (11. O-O-O Na6 12. Rd6 Nh5 13. Nd3 Bf8 14. Rd8 Rxd8 15. Bxd8 Be6 16. Bg5 Bxc4 17. Nf4 Bxe2 18. Nfxe2 Nc5 19. Rd1 Ng7 20. Nd4 Re8 {1-0 (53) Krivonosov,O (2397)-Kollars,D (2514) Riga 2017}) 11... Nxe4 {[%emt 0:04:30]} 12. Nxe4 {[%emt 0:00:30]} Rxe4 {[%emt 0:00:30]} 13. O-O-O {[%emt 0:00:00]} Re8 {[%emt 0:02:30]} 14. Rd2 {[%emt 0:07:00]} h6 $146 {[%emt 0:33:30]} ({Predecessor:} 14... Na6 15. Rhd1 Bf5 16. Nh4 Be6 17. Be3 Bf6 18. Nf3 Bf5 {0-1 (40) Fedechkin,V (1995)-Chigaev,M (2151) Kemerovo 2009}) 15. Be3 {[%emt 0:02:30]} Na6 {[%emt 0:01:30]} 16. Rhd1 {[%emt 0:02:30]} c5 {[%emt 0:00:30]} 17. Rd8 {[%emt 0:06:30]} Bf5 {[%emt 0:00:30]} 18. Rxa8 {[%emt 0:01:30]} Rxa8 {[%emt 0:00:30]} 19. Bd3 {[%emt 0:00:30]} Bxd3 {[%emt 0:02:30]} 20. Rxd3 {[%emt 0:00:30]} Rc8 {[%emt 0:00:30]} 21. Rd7 {[%emt 0:00:30]} Nc7 {[%emt 0:02:30]} 22. Bxc5 {[%emt 0:04:30]} Ne6 {[%emt 0:00:30]} 23. Bxa7 $16 {[%emt 0:00:30]} b5 {[%emt 0:00:30]} 24. Kb1 {[%emt 0:12:30]} bxc4 {[%emt 0:02:30]} 25. Kc2 {[%emt 0:13:30]} Kf8 {[%emt 0:02:30]} 26. Rb7 {[%emt 0:04:30]} Nf4 {[%emt 0:02:30]} 27. Rb8 {[%emt 0:07:30]} Rxb8 {[%emt 0:00:30]} 28. Bxb8 {[%emt 0:00:30]} Nd3 {[%emt 0:01:30]} 29. Nd2 {[%emt 0:09:36]} Nxb2 {[%emt 0:01:30]} 30. Bd6+ {[%emt 0:05:10]} Kg8 {[%emt 0:04:30]} 31. f4 {[%emt 0:00:24]} c3 {[%emt 0:01:30]} 32. Nf3 {[%emt 0:02:04]} Nc4 {[%emt 0:05:30]} 33. Bc5 {[%emt 0:00:19]} f5 {[%emt 0:02:30]} 34. Bd4 {[%emt 0:00:55]} Bxd4 {[%emt 0:10:46]} 35. Nxd4 {[%emt 0:00:06]} Ne3+ {[%emt 0:00:20]} 36. Kxc3 {[%emt 0:00:14]} Nxg2 {[%emt 0:01:15]} 37. a4 {[%emt 0:00:13]} Ne3 {[%emt 0:00:45]} 38. a5 {[%emt 0:01:04]} g5 {[%emt 0:02:02]} 39. Kb4 {[%emt 0:03:59]} Nd5+ {[%emt 0:02:24]} 40. Kc5 {[%emt 0:00:00]} Nxf4 {[%emt 0:01:58]} 41. a6 {[%emt 0:01:26]} Nd3+ {[%emt 0:00:00]} 42. Kb5 {[%emt 0:00:30]} 1-0